[Event "FIDE Women's Grand Swiss 2023"]
[Site "Villa Marina, Douglas, Isle of Man, Isle Of Man"]
[Date "2023.11.01"]
[Round "7.1"]
[White "Goryachkina, Aleksandra"]
[Black "Muzychuk, Anna"]
[Result "1/2-1/2"]
[TimeControl "40/90 + 30 + 30s/move"]
[WhiteFideId "4147103"]
[BlackFideId "14111330"]
[WhiteElo "2558"]
[BlackElo "2510"]

1. e4 {[%clk 01:30:34]} {[%emt 00:00:25]} e5 {[%clk 01:30:26]} {[%emt
00:00:35]} 2. Nf3 {[%clk 01:30:43]} {[%emt 00:00:20]} Nc6 {[%clk 01:30:49]}
{[%emt 00:00:07]} 3. Bb5 {[%clk 01:30:38]} {[%emt 00:00:35]} a6 {[%clk
01:31:05]} {[%emt 00:00:15]} 4. Ba4 {[%clk 01:30:50]} {[%emt 00:00:17]} Nf6
{[%clk 01:31:12]} {[%emt 00:00:23]} 5. O-O {[%clk 01:30:34]} {[%emt 00:00:46]}
Bc5 {[%clk 01:31:07]} {[%emt 00:00:36]} 6. d3 {[%clk 01:24:21]} {[%emt
00:06:42]} d6 {[%clk 01:25:50]} {[%emt 00:05:47]} 7. h3 {[%clk 01:20:53]}
{[%emt 00:03:57]} b5 {[%clk 01:22:00]} {[%emt 00:04:21]} 8. Bb3 {[%clk
01:21:16]} {[%emt 00:00:07]} Na5 {[%clk 01:22:07]} {[%emt 00:00:23]} 9. Nc3
{[%clk 01:16:47]} {[%emt 00:04:59]} h6 {[%clk 01:18:32]} {[%emt 00:04:05]} 10.
Ne2 {[%clk 01:14:00]} {[%emt 00:03:17]} O-O {[%clk 01:15:33]} {[%emt 00:03:30]}
11. Ng3 {[%clk 01:13:41]} {[%emt 00:00:48]} Re8 {[%clk 01:10:20]} {[%emt
00:05:43]} 12. Bd2 {[%clk 01:08:53]} {[%emt 00:05:17]} Nxb3 {[%clk 01:09:56]}
{[%emt 00:00:54]} 13. axb3 {[%clk 01:09:18]} {[%emt 00:00:05]} d5 {[%clk
01:03:21]} {[%emt 00:07:06]} 14. Qe2 {[%clk 01:07:32]} {[%emt 00:02:16]} Bb7
{[%clk 01:02:30]} {[%emt 00:01:21]} 15. Rfd1 {[%clk 01:05:31]} {[%emt
00:02:31]} Qd7 {[%clk 00:54:48]} {[%emt 00:08:12]} 16. Nh2 {[%clk 00:59:40]}
{[%emt 00:06:20]} dxe4 {[%clk 00:50:44]} {[%emt 00:04:34]} 17. dxe4 {[%clk
00:55:27]} {[%emt 00:04:44]} Qc6 {[%clk 00:50:31]} {[%emt 00:00:43]} 18. Re1
{[%clk 00:54:43]} {[%emt 00:01:13]} Rad8 {[%clk 00:43:02]} {[%emt 00:08:00]} 19.
b4 {[%clk 00:49:36]} {[%emt 00:05:37]} Bd4 {[%clk 00:42:26]} {[%emt 00:01:06]}
20. c3 {[%clk 00:48:09]} {[%emt 00:01:57]} Bb6 {[%clk 00:42:55]} {[%emt
00:00:02]} 21. Rad1 {[%clk 00:44:26]} {[%emt 00:04:12]} a5 {[%clk 00:36:53]}
{[%emt 00:06:32]} 22. bxa5 {[%clk 00:42:42]} {[%emt 00:02:14]} Bxa5 {[%clk
00:37:22]} {[%emt 00:00:01]} 23. Ng4 {[%clk 00:40:10]} {[%emt 00:03:01]} Nxg4
{[%clk 00:33:54]} {[%emt 00:03:58]} 24. hxg4 {[%clk 00:38:47]} {[%emt
00:01:53]} Bc8 {[%clk 00:33:16]} {[%emt 00:01:09]} 25. Nf5 {[%clk 00:34:18]}
{[%emt 00:04:58]} Bxf5 {[%clk 00:29:31]} {[%emt 00:04:16]} 26. exf5 {[%clk
00:29:23]} {[%emt 00:05:26]} f6 {[%clk 00:28:17]} {[%emt 00:01:43]} 27. Be3
{[%clk 00:27:26]} {[%emt 00:02:27]} Bb6 {[%clk 00:26:23]} {[%emt 00:02:24]} 28.
Bxb6 {[%clk 00:25:21]} {[%emt 00:02:34]} cxb6 {[%clk 00:22:30]} {[%emt
00:04:24]} 29. Rxd8 {[%clk 00:18:03]} {[%emt 00:07:48]} Rxd8 {[%clk 00:22:59]}
{[%emt 00:00:01]} 30. Rd1 {[%clk 00:18:01]} {[%emt 00:00:31]} Rxd1+ {[%clk
00:21:42]} {[%emt 00:01:47]} 31. Qxd1 {[%clk 00:18:30]} {[%emt 00:00:02]} Qe4
{[%clk 00:17:59]} {[%emt 00:04:13]} 32. Qb3+ {[%clk 00:14:28]} {[%emt
00:04:32]} Qc4 {[%clk 00:15:55]} {[%emt 00:02:35]} 33. Qd1 {[%clk 00:12:20]}
{[%emt 00:02:37]} Kh7 {[%clk 00:14:49]} {[%emt 00:01:36]} 34. f3 {[%clk
00:10:42]} {[%emt 00:02:07]} b4 {[%clk 00:14:49]} {[%emt 00:00:30]} 35. cxb4
{[%clk 00:10:06]} {[%emt 00:01:07]} Qxb4 {[%clk 00:15:18]} {[%emt 00:00:02]} 36.
Qe2 {[%clk 00:08:20]} {[%emt 00:02:15]} Qc5+ {[%clk 00:15:05]} {[%emt
00:00:43]} 37. Kf1 {[%clk 00:07:53]} {[%emt 00:00:56]} Qc1+ {[%clk 00:15:27]}
{[%emt 00:00:08]} 38. Kf2 {[%clk 00:08:13]} {[%emt 00:00:11]} Qc5+ {[%clk
00:15:53]} {[%emt 00:00:04]} 39. Kf1 {[%clk 00:07:33]} {[%emt 00:01:10]} Qc1+
{[%clk 00:16:17]} {[%emt 00:00:06]} 40. Kf2 {[%clk 00:07:47]} {[%emt 00:00:16]}
Qc5+ {[%clk 00:16:43]} {[%emt 00:00:04]} 41. Kf1 {[%clk 00:06:45]} {[%emt
00:01:31]} Qc1+ {[%clk 00:16:42]} {[%emt 00:00:32]} 1/2-1/2

[Event "FIDE Women's Grand Swiss 2023"]
[Site "Villa Marina, Douglas, Isle of Man, Isle Of Man"]
[Date "2023.11.01"]
[Round "7.11"]
[White "Paehtz, Elisabeth"]
[Black "Narva, Mai"]
[Result "1/2-1/2"]
[TimeControl "40/90 + 30 + 30s/move"]
[WhiteFideId "4641833"]
[BlackFideId "4500512"]
[WhiteElo "2484"]
[BlackElo "2399"]

1. e4 {[%clk 01:30:50]} {[%emt 00:00:09]} c5 {[%clk 01:30:48]} {[%emt
00:00:12]} 2. Nf3 {[%clk 01:31:13]} {[%emt 00:00:08]} Nc6 {[%clk 01:31:04]}
{[%emt 00:00:14]} 3. Bc4 {[%clk 01:31:39]} {[%emt 00:00:05]} e6 {[%clk
01:22:00]} {[%emt 00:09:33]} 4. O-O {[%clk 01:31:42]} {[%emt 00:00:27]} Nge7
{[%clk 01:04:45]} {[%emt 00:17:44]} 5. Re1 {[%clk 01:30:42]} {[%emt 00:01:31]}
Ng6 {[%clk 01:02:20]} {[%emt 00:02:55]} 6. c3 {[%clk 01:27:12]} {[%emt
00:04:00]} Be7 {[%clk 01:00:49]} {[%emt 00:01:59]} 7. d4 {[%clk 01:27:03]}
{[%emt 00:00:39]} d5 {[%clk 00:59:11]} {[%emt 00:02:08]} 8. exd5 {[%clk
01:16:48]} {[%emt 00:10:45]} exd5 {[%clk 00:59:28]} {[%emt 00:00:13]} 9. Bf1
{[%clk 01:14:23]} {[%emt 00:02:54]} cxd4 {[%clk 00:48:41]} {[%emt 00:11:17]} 10.
Nxd4 {[%clk 01:12:22]} {[%emt 00:02:32]} O-O {[%clk 00:47:52]} {[%emt
00:01:18]} 11. Be3 {[%clk 01:07:27]} {[%emt 00:05:25]} Nce5 {[%clk 00:40:05]}
{[%emt 00:08:17]} 12. Nd2 {[%clk 01:05:24]} {[%emt 00:02:34]} Ng4 {[%clk
00:37:36]} {[%emt 00:02:58]} 13. N2f3 {[%clk 01:05:44]} {[%emt 00:00:09]} Bd6
{[%clk 00:34:08]} {[%emt 00:03:59]} 14. Qd2 {[%clk 00:56:25]} {[%emt 00:09:50]}
Bd7 {[%clk 00:24:20]} {[%emt 00:10:18]} 15. Bg5 {[%clk 00:43:25]} {[%emt
00:13:30]} Qa5 {[%clk 00:14:41]} {[%emt 00:10:09]} 16. h3 {[%clk 00:40:51]}
{[%emt 00:03:04]} N4e5 {[%clk 00:05:40]} {[%emt 00:09:31]} 17. Nxe5 {[%clk
00:39:23]} {[%emt 00:01:58]} Nxe5 {[%clk 00:05:38]} {[%emt 00:00:32]} 18. Nb3
{[%clk 00:38:08]} {[%emt 00:01:45]} Qc7 {[%clk 00:05:48]} {[%emt 00:00:20]} 19.
Qxd5 {[%clk 00:37:44]} {[%emt 00:00:54]} Be6 {[%clk 00:05:55]} {[%emt
00:00:23]} 20. Qd1 {[%clk 00:32:17]} {[%emt 00:05:57]} h6 {[%clk 00:05:46]}
{[%emt 00:00:38]} 21. Bf4 {[%clk 00:30:40]} {[%emt 00:02:07]} a6 {[%clk
00:04:17]} {[%emt 00:01:59]} 22. Nd4 {[%clk 00:30:50]} {[%emt 00:00:21]} Bd7
{[%clk 00:04:40]} {[%emt 00:00:07]} 23. Bg3 {[%clk 00:30:01]} {[%emt 00:01:19]}
Rae8 {[%clk 00:03:39]} {[%emt 00:01:31]} 24. Qb3 {[%clk 00:25:13]} {[%emt
00:05:19]} Kh8 {[%clk 00:03:53]} {[%emt 00:00:16]} 25. Qd5 {[%clk 00:23:36]}
{[%emt 00:02:08]} f5 {[%clk 00:03:13]} {[%emt 00:01:09]} 26. Bxe5 {[%clk
00:20:18]} {[%emt 00:03:48]} Bxe5 {[%clk 00:03:13]} {[%emt 00:00:30]} 27. Rad1
{[%clk 00:19:16]} {[%emt 00:01:32]} f4 {[%clk 00:02:45]} {[%emt 00:00:58]} 28.
Nf3 {[%clk 00:13:20]} {[%emt 00:06:26]} Bc6 {[%clk 00:03:02]} {[%emt 00:00:13]}
29. Qd3 {[%clk 00:13:36]} {[%emt 00:00:13]} Bf6 {[%clk 00:03:04]} {[%emt
00:00:28]} 30. Qg6 {[%clk 00:13:28]} {[%emt 00:00:38]} Qf7 {[%clk 00:02:11]}
{[%emt 00:01:23]} 31. Rxe8 {[%clk 00:08:38]} {[%emt 00:05:21]} Qxe8 {[%clk
00:00:36]} {[%emt 00:02:05]} 32. Qxe8 {[%clk 00:05:21]} {[%emt 00:03:48]} Rxe8
{[%clk 00:01:01]} {[%emt 00:00:05]} 33. Nd4 {[%clk 00:05:35]} {[%emt 00:00:16]}
Bd5 {[%clk 00:00:46]} {[%emt 00:00:45]} 34. a3 {[%clk 00:05:06]} {[%emt
00:00:59]} b5 {[%clk 00:00:34]} {[%emt 00:00:41]} 35. Bd3 {[%clk 00:03:26]}
{[%emt 00:02:10]} Rd8 {[%clk 00:00:41]} {[%emt 00:00:22]} 36. Bg6 {[%clk
00:03:09]} {[%emt 00:00:47]} Kg8 {[%clk 00:00:45]} {[%emt 00:00:27]} 37. Re1
{[%clk 00:01:43]} {[%emt 00:01:57]} Bxd4 {[%clk 00:00:40]} {[%emt 00:00:36]} 38.
cxd4 {[%clk 00:02:08]} {[%emt 00:00:05]} Bf7 {[%clk 00:00:59]} {[%emt
00:00:10]} 39. Bxf7+ {[%clk 00:01:37]} {[%emt 00:01:01]} Kxf7 {[%clk 00:01:25]}
{[%emt 00:00:04]} 40. Rd1 {[%clk 00:01:58]} {[%emt 00:00:10]} Rc8 {[%clk
00:00:44]} {[%emt 00:01:11]} 41. Rd2 {[%clk 00:01:37]} {[%emt 00:00:51]} Rc1+
{[%clk 00:00:43]} {[%emt 00:00:30]} 42. Kh2 {[%clk 00:02:05]} {[%emt 00:00:03]}
Ke6 {[%clk 00:00:39]} {[%emt 00:00:33]} 43. g3 {[%clk 00:29:17]} {[%emt
00:03:18]} fxg3+ {[%clk 00:29:23]} {[%emt 00:01:46]} 44. Kxg3 {[%clk 00:29:35]}
{[%emt 00:00:12]} Kd5 {[%clk 00:29:20]} {[%emt 00:00:32]} 45. Kf4 {[%clk
00:16:41]} {[%emt 00:13:25]} Ke5+ {[%emt 00:02:17]} 46. Ke4+ Rc4+ {[%emt
00:00:01]} 1/2-1/2